[Event "IV Copa Marcel Duchamp 2020"]
[Site "Montevideo"]
[Date "2020.02.13"]
[Round "7"]
[White "Aguilera, Angel"]
[Black "Avedisian, Alexander"]
[Result "0-1"]
[ECO "A04"]
[WhiteElo "1196"]
[BlackElo "1892"]
[Annotator "NA RC"]
[PlyCount "94"]
[EventDate "2020.02.08"]
[EventType "swiss"]
[EventCountry "URU"]
[SourceTitle "playchess.com"]
[Source "ChessBase"]
[SourceQuality "1"]
[TimeControl "5400+30"]

1. Nf3 {[%emt 0:00:03]} g6 {[%emt 0:00:00]} 2. g3 Bg7 3. Bg2 Nf6 4. d4 {[%emt 0:02:30]} O-O {[%emt 0:00:51]} 5. O-O {[%emt 0:01:46]} d6 {[%emt 0:00:07]} 6. c4 {[%emt 0:00:51]} c5 {[%emt 0:00:07]} 7. dxc5 {[%emt 0:02:15]} dxc5 {[%emt 0:00:15]} 8. Be3 {[%emt 0:00:57]} Nc6 {[%emt 0:01:20]} 9. Qxd8 {[%emt 0:02:59]} Rxd8 {[%emt 0:00:06]} 10. Nc3 {[%emt 0:01:04]} Be6 {[%emt 0:01:23]} 11. Bxc5 {[%emt 0:04:49]} Bxc4 {[%emt 0:00:13]} 12. b3 {[%emt 0:03:48]} Nd7 {[%emt 0:05:43]} 13. Rac1 {[%emt 0:12:44]} Nxc5 {[%emt 0:03:58]} 14. bxc4 {[%emt 0:01:07]} Rd7 {[%emt 0:02:58]} 15. Ne1 {[%emt 0:02:11]} Na5 {[%emt 0:06:45]} 16. Ne4 {[%emt 0:00:52]} Rc8 {[%emt 0:01:41]} 17. Bh3 {[%emt 0:01:47]} e6 {[%emt 0:00:31]} 18. Nxc5 {[%emt 0:10:32]} Rxc5 {[%emt 0:00:08]} 19. Nd3 {[%emt 0:00:14]} Rxc4 {[%emt 0:01:11]} 20. Rxc4 {[%emt 0:01:14]} Nxc4 {[%emt 0:00:09]} 21. Nc5 {[%emt 0:00:20]} Rc7 {[%emt 0:03:58]} 22. Nxe6 {[%emt 0:03:59]} fxe6 {[%emt 0:00:58]} 23. Bxe6+ {[%emt 0:00:16]} Kf8 {[%emt 0:00:16]} 24. Rc1 {[%emt 0:00:38]} b5 {[%emt 0:00:33]} 25. a4 {[%emt 0:00:06]} a6 {[%emt 0:00:16]} 26. axb5 {[%emt 0:02:02]} axb5 {[%emt 0:00:09]} 27. Rb1 {[%emt 0:07:05]} Nb2 {[%emt 0:10:46]} 28. e4 {[%emt 0:01:01]} b4 {[%emt 0:01:00]} 29. f4 {[%emt 0:00:18]} Bd4+ {[%emt 0:00:57]} 30. Kg2 {[%emt 0:01:09]} Rc2+ {[%emt 0:01:23]} 31. Kh3 {[%emt 0:00:39]} Rd2 {[%emt 0:02:06]} 32. e5 {[%emt 0:03:15]} Rd1 {[%emt 0:00:36]} 33. Rxd1 {[%emt 0:01:35]} Nxd1 {[%emt 0:00:07]} 34. Kg2 {[%emt 0:00:39]} Nb2 {[%emt 0:06:02]} 35. h3 {[%emt 0:00:30]} Na4 {[%emt 0:00:15]} 36. Bb3 {[%emt 0:00:11]} Nc5 {[%emt 0:00:11]} 37. Ba2 {[%emt 0:01:10]} b3 {[%emt 0:00:18]} 38. Bb1 {[%emt 0:00:02]} b2 {[%emt 0:00:26]} 39. Kf1 {[%emt 0:01:03]} Na4 {[%emt 0:00:16]} 40. e6 {[%emt 0:00:45]} Nc3 {[%emt 0:00:24]} 41. Bd3 {[%emt 0:02:56]} b1=Q+ {[%emt 0:00:12]} 42. Bxb1 {[%emt 0:00:31]} Nxb1 {[%emt 0:00:06]} 43. g4 {[%emt 0:00:20]} Nc3 {[%emt 0:00:42]} 44. Kg2 {[%emt 0:00:10]} Ke7 {[%emt 0:03:13]} 45. f5 {[%emt 0:01:32]} gxf5 {[%emt 0:11:22]} 46. gxf5 {[%emt 0:00:53]} Be5 {[%emt 0:00:15]} 47. Kf3 {[%emt 0:00:34]} h5 {[%emt 0:00:12]} 0-1

[Event "IV Copa Marcel Duchamp 2020"]
[Site "Montevideo"]
[Date "2020.02.13"]
[Round "7.11"]
[White "Vazquez, Facundo"]
[Black "Michailov, Matias"]
[Result "1/2-1/2"]
[ECO "E63"]
[WhiteElo "2155"]
[BlackElo "2262"]
[Annotator "RC"]
[PlyCount "66"]
[EventDate "2020.02.08"]
[EventType "swiss"]
[EventCountry "URU"]
[SourceTitle "playchess.com"]
[Source "ChessBase"]
[SourceQuality "1"]
[TimeControl "5400+30"]

1. d4 {[%emt 0:00:00]} Nf6 {[%emt 0:04:43]} 2. c4 {[%emt 0:00:00]} g6 {[%emt 0:00:09]} 3. Nc3 {[%emt 0:00:07]} Bg7 {[%emt 0:00:08]} 4. g3 {[%emt 0:00:59]} O-O {[%emt 0:00:22]} 5. Bg2 {[%emt 0:00:15]} d6 {[%emt 0:00:42]} 6. Nf3 {[%emt 0:00:14]} Nc6 {[%emt 0:00:29]} 7. O-O {[%emt 0:00:17]} a6 {[%emt 0:00:18]} 8. h3 {[%emt 0:00:13]} Rb8 {[%emt 0:05:47]} 9. e4 {[%emt 0:01:17]} Nd7 {[%emt 0:00:18]} 10. Bg5 {[%emt 0:04:55]} h6 {[%emt 0:16:56]} 11. Be3 {[%emt 0:00:10]} Na5 {[%emt 0:00:24]} 12. b3 {[%emt 0:08:09]} c5 {[%emt 0:00:25]} 13. Qd2 {[%emt 0:01:08]} Kh7 {[%emt 0:00:58]} 14. Rac1 {[%emt 0:07:36]} Nc6 {[%emt 0:06:36]} 15. Rfd1 {[%emt 0:06:34]} e5 {[%emt 0:20:30]} 16. dxc5 {[%emt 0:23:04]} dxc5 {[%emt 0:00:09]} 17. Qd6 {[%emt 0:01:17]} Re8 {[%emt 0:08:45]} 18. Na4 {[%emt 0:06:32]} Nd4 {[%emt 0:11:26]} 19. Bxd4 {[%emt 0:03:58]} exd4 {[%emt 0:01:46]} 20. Nxc5 {[%emt 0:04:56]} Bf8 {[%emt 0:16:33]} 21. Qf4 {[%emt 0:01:15]} Bxc5 {[%emt 0:00:31]} 22. Qxf7+ {[%emt 0:00:09]} Kh8 {[%emt 0:00:01]} 23. Qxg6 {[%emt 0:04:24]} Re7 {[%emt 0:01:00]} 24. Qxh6+ {[%emt 0:09:25]} Rh7 {[%emt 0:00:04]} 25. Qd2 {[%emt 0:01:19]} Qe7 {[%emt 0:01:32]} 26. b4 {[%emt 0:02:56]} Bxb4 {[%emt 0:00:52]} 27. Qxd4+ {[%emt 0:00:16]} Rg7 {[%emt 0:01:07]} 28. e5 {[%emt 0:01:25]} Bc5 {[%emt 0:00:19]} 29. Qf4 {[%emt 0:00:43]} Rf7 {[%emt 0:00:31]} 30. Qh6+ {[%emt 0:01:05]} Rh7 {[%emt 0:00:02]} 31. Qf4 {[%emt 0:00:21]} Rf7 {[%emt 0:00:04]} 32. Qh6+ {[%emt 0:00:10]} Rh7 {[%emt 0:00:04]} 33. Qf4 {[%emt 0:00:11]} Rf7 {[%emt 0:00:05]} 1/2-1/2

[Event "IV Copa Marcel Duchamp 2020"]
[Site "Montevideo"]
[Date "2020.02.14"]
[Round "8.10"]
[White "Guerrero, Alvaro"]
[Black "Mussanti, Diego"]
[Result "0-1"]
[ECO "B20"]
[WhiteElo "2094"]
[BlackElo "2330"]
[Annotator "ChessBase"]
[PlyCount "120"]
[EventDate "2020.02.08"]
[EventType "swiss"]
[EventCountry "URU"]
[SourceTitle "playchess.com"]
[Source "ChessBase"]
[SourceQuality "1"]
[TimeControl "5400+30"]

1. e4 {[%emt 0:01:03]} c5 {[%emt 0:00:00]} 2. d3 {[%emt 0:00:12]} Nc6 {[%emt 0:00:18]} 3. Nf3 {[%emt 0:00:14]} e6 {[%emt 0:00:59]} 4. g3 {[%emt 0:00:26]} g6 {[%emt 0:00:19]} 5. Bg2 {[%emt 0:00:14]} Bg7 {[%emt 0:00:06]} 6. h4 {[%emt 0:00:13]} h6 {[%emt 0:01:07]} 7. O-O {[%emt 0:00:19]} Nge7 {[%emt 0:01:17]} 8. c3 {[%emt 0:00:14]} O-O {[%emt 0:03:06]} 9. Be3 {[%emt 0:12:09]} b6 {[%emt 0:02:02]} 10. Qd2 {[%emt 0:00:47]} Kh7 {[%emt 0:00:35]} 11. d4 {[%emt 0:00:08]} cxd4 {[%emt 0:06:25]} 12. cxd4 {[%emt 0:03:06]} d5 {[%emt 0:00:26]} 13. e5 {[%emt 0:00:23]} Nf5 {[%emt 0:00:41]} 14. Bf4 {[%emt 0:00:54]} Ba6 {[%emt 0:08:16]} 15. Rc1 {[%emt 0:00:20]} Rc8 {[%emt 0:00:29]} 16. Na3 {[%emt 0:07:11]} Qe7 {[%emt 0:13:08]} 17. Rc3 {[%emt 0:00:59]} Nb4 {[%emt 0:02:24]} 18. Rb3 {[%emt 0:00:40]} Nc6 {[%emt 0:01:39]} 19. g4 {[%emt 0:00:59]} Nxh4 {[%emt 0:01:50]} 20. Nxh4 {[%emt 0:00:03]} Qxh4 {[%emt 0:04:04]} 21. Rh3 {[%emt 0:00:27]} Qxg4 {[%emt 0:00:27]} 22. Bxh6 {[%emt 0:00:12]} Qxh3 {[%emt 0:08:55]} 23. Bxh3 {[%emt 0:10:50]} Bxh6 {[%emt 0:00:12]} 24. Qd1 {[%emt 0:00:41]} Na5 {[%emt 0:09:50]} 25. Bf1 {[%emt 0:09:25]} Bxf1 {[%emt 0:00:25]} 26. Qxf1 {[%emt 0:00:05]} Nc4 {[%emt 0:00:21]} 27. Nxc4 {[%emt 0:02:37]} Rxc4 {[%emt 0:00:37]} 28. Rd1 {[%emt 0:00:24]} Rfc8 {[%emt 0:00:17]} 29. Kg2 {[%emt 0:00:06]} R8c7 {[%emt 0:07:03]} 30. Qd3 {[%emt 0:00:25]} Rc1 {[%emt 0:01:56]} 31. Rxc1 {[%emt 0:01:18]} Bxc1 {[%emt 0:00:34]} 32. Qa3 {[%emt 0:03:44]} Kg7 {[%emt 0:02:24]} 33. Qf3 {[%emt 0:09:48]} Bg5 {[%emt 0:01:20]} 34. Qg3 {[%emt 0:00:34]} Be7 {[%emt 0:00:19]} 35. Qd3 {[%emt 0:01:30]} Rc4 {[%emt 0:02:30]} 36. b3 {[%emt 0:01:11]} Rc7 {[%emt 0:00:09]} 37. Qb5 {[%emt 0:10:00]} Rc2 {[%emt 0:02:39]} 38. Kg3 {[%emt 0:02:59]} Rxa2 {[%emt 0:01:27]} 39. Qe8 {[%emt 0:01:15]} Bf8 {[%emt 0:00:25]} 40. f3 {[%emt 0:01:51]} a6 {[%emt 0:01:53]} 41. Qd8 {[%emt 0:03:00]} b5 {[%emt 0:00:29]} 42. Qb6 {[%emt 0:03:57]} b4 {[%emt 0:01:00]} 43. Qc6 {[%emt 0:00:29]} Rd2 {[%emt 0:00:43]} 44. Qb6 {[%emt 0:00:34]} Rd3 {[%emt 0:00:25]} 45. Kf2 {[%emt 0:01:54]} Rxb3 {[%emt 0:00:21]} 46. Qxa6 {[%emt 0:00:06]} Rc3 {[%emt 0:00:10]} 47. Qa5 {[%emt 0:00:40]} Rc4 {[%emt 0:02:01]} 48. Qb6 {[%emt 0:00:47]} Be7 {[%emt 0:00:08]} 49. Kg3 {[%emt 0:00:48]} Rc3 {[%emt 0:00:35]} 50. Qb7 {[%emt 0:01:30]} Bf8 {[%emt 0:00:10]} 51. Qa7 {[%emt 0:00:53]} b3 {[%emt 0:00:30]} 52. Qa1 {[%emt 0:00:27]} Rc4 {[%emt 0:01:03]} 53. Qb2 {[%emt 0:00:12]} Rb4 {[%emt 0:00:09]} 54. f4 {[%emt 0:03:42]} Rb8 {[%emt 0:00:19]} 55. f5 {[%emt 0:06:13]} exf5 {[%emt 0:03:17]} 56. Kf4 {[%emt 0:00:25]} Ba3 {[%emt 0:01:22]} 57. Qb1 {[%emt 0:00:24]} b2 {[%emt 0:00:09]} 58. Ke3 {[%emt 0:01:16]} Rc8 {[%emt 0:00:31]} 59. e6 {[%emt 0:01:43]} Rc1 {[%emt 0:01:00]} 60. e7 {[%emt 0:00:32]} Rxb1 {[%emt 0:00:25]} 0-1

[Event "IV Copa Marcel Duchamp 2020"]
[Site "Montevideo"]
[Date "2020.02.14"]
[Round "8.18"]
[White "Muniz, Rafael"]
[Black "Pinero, Ismael"]
[Result "1-0"]
[ECO "A45"]
[WhiteElo "2232"]
[BlackElo "1914"]
[Annotator "RC"]
[PlyCount "85"]
[EventDate "2020.02.08"]
[EventType "swiss"]
[EventCountry "URU"]
[SourceTitle "playchess.com"]
[Source "ChessBase"]
[SourceQuality "1"]
[TimeControl "5400+30"]

1. d4 {[%emt 0:00:00]} Nf6 {[%emt 0:01:23]} 2. Nc3 {[%emt 0:01:14]} d5 3. Bf4 {[%emt 0:01:20]} c6 {[%emt 0:03:22]} 4. Qd2 {[%emt 0:00:43]} Bf5 {[%emt 0:00:17]} 5. f3 {[%emt 0:00:30]} e6 {[%emt 0:00:31]} 6. g4 {[%emt 0:01:10]} Bg6 {[%emt 0:00:29]} 7. h4 {[%emt 0:00:19]} h5 {[%emt 0:01:48]} 8. g5 {[%emt 0:00:56]} Nh7 {[%emt 0:05:54]} 9. e3 {[%emt 0:00:52]} Bd6 {[%emt 0:00:23]} 10. Bd3 {[%emt 0:03:03]} Nf8 {[%emt 0:01:35]} 11. e4 {[%emt 0:04:45]} Qc7 {[%emt 0:04:02]} 12. Nge2 {[%emt 0:01:03]} Nbd7 {[%emt 0:04:50]} 13. O-O-O {[%emt 0:07:59]} O-O-O 14. Kb1 Kb8 {[%emt 0:09:34]} 15. Qe3 {[%emt 0:10:08]} a6 {[%emt 0:04:56]} 16. Bxd6 {[%emt 0:06:17]} Qxd6 {[%emt 0:00:07]} 17. Nf4 {[%emt 0:00:41]} Qc7 {[%emt 0:03:54]} 18. Nxg6 {[%emt 0:01:57]} Nxg6 {[%emt 0:01:39]} 19. exd5 {[%emt 0:00:25]} exd5 {[%emt 0:00:23]} 20. Bxg6 {[%emt 0:00:32]} fxg6 {[%emt 0:02:11]} 21. Qe7 {[%emt 0:04:51]} Nb6 {[%emt 0:00:17]} 22. Rhe1 {[%emt 0:03:52]} Rhe8 {[%emt 0:06:16]} 23. Qb4 {[%emt 0:03:47]} Ka8 {[%emt 0:09:58]} 24. a4 {[%emt 0:00:36]} Nc4 {[%emt 0:00:39]} 25. a5 {[%emt 0:05:57]} Nd2+ {[%emt 0:06:28]} 26. Ka2 {[%emt 0:00:43]} Nxf3 {[%emt 0:00:25]} 27. Rxe8 {[%emt 0:00:33]} Rxe8 {[%emt 0:00:13]} 28. Na4 {[%emt 0:00:31]} Nxh4 {[%emt 0:01:31]} 29. Nb6+ {[%emt 0:02:01]} Kb8 {[%emt 0:00:10]} 30. Re1 {[%emt 0:02:21]} Qf7 {[%emt 0:02:25]} 31. Qd6+ {[%emt 0:06:56]} Ka7 {[%emt 0:00:01]} 32. Nd7 {[%emt 0:02:00]} Nf5 {[%emt 0:02:14]} 33. Qc7 {[%emt 0:00:23]} h4 {[%emt 0:06:01]} 34. Qb6+ {[%emt 0:02:17]} Ka8 {[%emt 0:00:09]} 35. Ne5 {[%emt 0:00:16]} Rxe5 {[%emt 0:03:22]} 36. Qd8+ {[%emt 0:02:02]} Ka7 {[%emt 0:00:29]} 37. Rxe5 {[%emt 0:00:28]} h3 {[%emt 0:04:02]} 38. Re8 {[%emt 0:00:38]} Qxe8 39. Qxe8 h2 {[%emt 0:01:08]} 40. Qh8 {[%emt 0:00:45]} Nh6 {[%emt 0:00:40]} 41. gxh6 {[%emt 0:00:08]} h1=Q 42. hxg7 {[%emt 0:00:35]} Qf1 {[%emt 0:04:51]} 43. g8=Q {[%emt 0:00:30]} 1-0

[Event "IV Copa Marcel Duchamp 2020"]
[Site "Montevideo"]
[Date "2020.02.15"]
[Round "9.1"]
[White "Acosta, Pablo Ismael"]
[Black "Liascovich, Lucas"]
[Result "1/2-1/2"]
[ECO "A14"]
[WhiteElo "2416"]
[BlackElo "2425"]
[Annotator "ChessBase"]
[PlyCount "39"]
[EventDate "2020.02.08"]
[EventType "swiss"]
[EventCountry "URU"]
[SourceTitle "playchess.com"]
[Source "ChessBase"]
[SourceQuality "1"]
[TimeControl "5400+30"]

1. c4 {[%emt 0:00:00]} e6 {[%emt 0:05:43]} 2. g3 {[%emt 0:00:00]} d5 {[%emt 0:00:37]} 3. Bg2 {[%emt 0:00:08]} Nf6 {[%emt 0:00:11]} 4. Nf3 {[%emt 0:00:32]} Be7 {[%emt 0:01:48]} 5. O-O {[%emt 0:00:17]} O-O {[%emt 0:00:20]} 6. b3 {[%emt 0:03:45]} c5 {[%emt 0:02:20]} 7. cxd5 {[%emt 0:01:04]} Nxd5 {[%emt 0:04:54]} 8. Bb2 {[%emt 0:00:50]} Nc6 {[%emt 0:00:06]} 9. d4 {[%emt 0:02:20]} cxd4 {[%emt 0:09:09]} 10. Nxd4 {[%emt 0:00:49]} Ndb4 {[%emt 0:00:35]} 11. Nxc6 {[%emt 0:02:19]} Nxc6 {[%emt 0:00:20]} 12. Nd2 {[%emt 0:07:02]} Bd7 {[%emt 0:03:08]} 13. Nc4 {[%emt 0:02:08]} Qc7 {[%emt 0:01:41]} 14. Rc1 {[%emt 0:02:02]} Rfd8 {[%emt 0:04:37]} 15. Qc2 {[%emt 0:00:30]} Rac8 {[%emt 0:05:35]} 16. Ne5 {[%emt 0:05:17]} Be8 {[%emt 0:00:30]} 17. Nxc6 {[%emt 0:01:41]} Bxc6 {[%emt 0:00:32]} 18. Bxc6 {[%emt 0:00:43]} Qxc6 {[%emt 0:01:38]} 19. Qxc6 {[%emt 0:00:12]} Rxc6 {[%emt 0:00:26]} 20. Rxc6 {[%emt 0:00:54]} 1/2-1/2

[Event "IV Copa Marcel Duchamp 2020"]
[Site "Montevideo"]
[Date "2020.02.15"]
[Round "9.5"]
[White "Hoffman, Alejandro"]
[Black "Michailov, Matias"]
[Result "1/2-1/2"]
[ECO "A45"]
[WhiteElo "2472"]
[BlackElo "2262"]
[Annotator "ChessBase"]
[PlyCount "160"]
[EventDate "2020.02.08"]
[EventType "swiss"]
[EventCountry "URU"]
[SourceTitle "playchess.com"]
[Source "ChessBase"]
[SourceQuality "1"]
[TimeControl "5400+30"]

1. d4 {[%emt 0:03:49]} Nf6 {[%emt 0:02:54]} 2. g3 {[%emt 0:00:31]} g6 {[%emt 0:03:57]} 3. Bg2 {[%emt 0:00:08]} Bg7 {[%emt 0:00:07]} 4. e4 {[%emt 0:00:13]} d6 {[%emt 0:01:56]} 5. Nc3 {[%emt 0:00:54]} O-O {[%emt 0:02:22]} 6. Nge2 {[%emt 0:00:15]} e5 {[%emt 0:05:53]} 7. h3 {[%emt 0:00:22]} c6 {[%emt 0:06:27]} 8. a4 {[%emt 0:00:33]} Qc7 {[%emt 0:01:01]} 9. O-O {[%emt 0:00:52]} a5 {[%emt 0:03:03]} 10. Be3 {[%emt 0:01:10]} Na6 {[%emt 0:01:09]} 11. f4 {[%emt 0:05:21]} exd4 {[%emt 0:03:38]} 12. Bxd4 {[%emt 0:00:34]} Nb4 {[%emt 0:02:18]} 13. g4 {[%emt 0:03:41]} Re8 {[%emt 0:16:25]} 14. Ng3 {[%emt 0:05:26]} b6 {[%emt 0:08:35]} 15. Rf2 {[%emt 0:04:02]} Ba6 {[%emt 0:08:14]} 16. g5 {[%emt 0:03:03]} Nd7 {[%emt 0:00:05]} 17. Bxg7 {[%emt 0:00:09]} Kxg7 {[%emt 0:00:04]} 18. Qd4+ {[%emt 0:00:18]} Kg8 {[%emt 0:01:22]} 19. Rd1 {[%emt 0:00:13]} Rad8 {[%emt 0:08:32]} 20. Qxd6 {[%emt 0:01:04]} Qa7 {[%emt 0:01:02]} 21. e5 {[%emt 0:02:50]} Nf8 {[%emt 0:06:31]} 22. Qxd8 {[%emt 0:01:15]} Rxd8 {[%emt 0:00:03]} 23. Rxd8 {[%emt 0:00:07]} b5 {[%emt 0:00:27]} 24. Nge4 {[%emt 0:01:33]} Kg7 {[%emt 0:02:51]} 25. Nf6 {[%emt 0:01:04]} Qe3 {[%emt 0:05:49]} 26. Ne8+ {[%emt 0:07:00]} Kg8 {[%emt 0:04:45]} 27. Ne4 {[%emt 0:00:32]} Nd5 {[%emt 0:00:48]} 28. N8f6+ {[%emt 0:03:14]} Kg7 {[%emt 0:00:14]} 29. Ne8+ {[%emt 0:05:53]} Kg8 {[%emt 0:00:04]} 30. N4f6+ {[%emt 0:00:08]} Nxf6 {[%emt 0:00:43]} 31. Nxf6+ {[%emt 0:00:28]} Kg7 {[%emt 0:00:04]} 32. Bxc6 {[%emt 0:08:01]} bxa4 {[%emt 0:01:48]} 33. Rb8 {[%emt 0:22:57]} a3 {[%emt 0:02:15]} 34. bxa3 {[%emt 0:00:15]} Qxa3 {[%emt 0:00:16]} 35. Kg2 {[%emt 0:01:29]} Qc3 {[%emt 0:00:41]} 36. Bf3 {[%emt 0:04:59]} a4 {[%emt 0:01:00]} 37. Ne8+ {[%emt 0:00:24]} Kg8 {[%emt 0:00:07]} 38. Ra8 {[%emt 0:00:15]} Bb5 {[%emt 0:00:31]} 39. Nd6 {[%emt 0:00:40]} Bd7 {[%emt 0:00:38]} 40. Ne4 {[%emt 0:00:35]} Qe3 {[%emt 0:00:33]} 41. Nf6+ {[%emt 0:02:14]} Kg7 {[%emt 0:00:01]} 42. Nxd7 {[%emt 0:00:31]} Nxd7 {[%emt 0:00:01]} 43. Rxa4 {[%emt 0:00:09]} Nc5 {[%emt 0:00:13]} 44. Rc4 {[%emt 0:00:57]} Ne6 {[%emt 0:00:05]} 45. Bg4 {[%emt 0:00:10]} Nd4 {[%emt 0:00:53]} 46. c3 {[%emt 0:02:24]} Nf5 {[%emt 0:01:23]} 47. Bxf5 {[%emt 0:00:38]} gxf5 {[%emt 0:00:01]} 48. h4 {[%emt 0:01:45]} Kg6 {[%emt 0:01:05]} 49. Rd4 {[%emt 0:03:03]} Kh5 {[%emt 0:00:39]} 50. Rfd2 {[%emt 0:00:26]} Kg4 {[%emt 0:00:18]} 51. c4 {[%emt 0:01:05]} Qg3+ {[%emt 0:00:56]} 52. Kf1 {[%emt 0:00:38]} Qf3+ {[%emt 0:00:08]} 53. Rf2 {[%emt 0:00:30]} Qh1+ {[%emt 0:00:15]} 54. Ke2 {[%emt 0:00:07]} Qc1 {[%emt 0:00:38]} 55. Kd3 {[%emt 0:01:00]} Qa3+ {[%emt 0:00:21]} 56. Ke2 {[%emt 0:00:53]} Qc1 {[%emt 0:00:29]} 57. h5 {[%emt 0:01:02]} Qb2+ {[%emt 0:00:56]} 58. Ke3 {[%emt 0:01:31]} Qc3+ {[%emt 0:00:23]} 59. Rd3 {[%emt 0:00:10]} Qe1+ {[%emt 0:00:49]} 60. Re2 {[%emt 0:00:18]} Qg1+ {[%emt 0:00:18]} 61. Kd2 {[%emt 0:00:42]} Kxf4 {[%emt 0:00:30]} 62. g6 {[%emt 0:00:32]} hxg6 {[%emt 0:00:24]} 63. hxg6 {[%emt 0:00:02]} Qxg6 {[%emt 0:00:19]} 64. Rd4+ {[%emt 0:00:06]} Kg3 {[%emt 0:00:36]} 65. Re3+ {[%emt 0:00:15]} Kf2 {[%emt 0:00:46]} 66. Rf4+ {[%emt 0:00:36]} Kg2 {[%emt 0:00:05]} 67. Ke1 {[%emt 0:02:45]} Qb6 {[%emt 0:00:50]} 68. Rf2+ {[%emt 0:00:31]} Kg1 {[%emt 0:00:03]} 69. Rg3+ {[%emt 0:00:53]} Kh1 {[%emt 0:00:02]} 70. Rh3+ {[%emt 0:01:33]} Kg1 {[%emt 0:00:02]} 71. Rg3+ {[%emt 0:00:04]} Kh1 {[%emt 0:00:04]} 72. Rd3 {[%emt 0:00:10]} Qa5+ {[%emt 0:02:28]} 73. Rdd2 {[%emt 0:01:59]} Qxe5+ {[%emt 0:00:07]} 74. Kd1 {[%emt 0:00:13]} Kg1 {[%emt 0:00:47]} 75. Rg2+ {[%emt 0:00:19]} Kh1 {[%emt 0:00:03]} 76. Rge2 {[%emt 0:00:15]} Qa1+ {[%emt 0:00:21]} 77. Kc2 {[%emt 0:00:01]} Qa2+ {[%emt 0:00:40]} 78. Kd3 {[%emt 0:00:18]} Qa3+ {[%emt 0:00:19]} 79. Kd4 {[%emt 0:00:53]} Qd6+ {[%emt 0:00:05]} 80. Kc3 {[%emt 0:00:22]} Qa3+ {[%emt 0:00:04]} 1/2-1/2

[Event "IV Copa Marcel Duchamp 2020"]
[Site "Montevideo"]
[Date "2020.02.15"]
[Round "9.6"]
[White "Mussanti, Diego"]
[Black "Lima, Darcy"]
[Result "1/2-1/2"]
[ECO "B00"]
[WhiteElo "2330"]
[BlackElo "2526"]
[Annotator "RC"]
[PlyCount "134"]
[EventDate "2020.02.08"]
[EventType "swiss"]
[EventCountry "URU"]
[SourceTitle "playchess.com"]
[Source "ChessBase"]
[SourceQuality "1"]
[TimeControl "5400+30"]

1. e4 {[%emt 0:00:00]} b6 {[%emt 0:01:16]} 2. d4 {[%emt 0:00:21]} Bb7 {[%emt 0:00:10]} 3. Nc3 {[%emt 0:00:17]} e6 {[%emt 0:00:13]} 4. Bd3 {[%emt 0:00:34]} Nf6 {[%emt 0:03:45]} 5. Nge2 {[%emt 0:01:44]} c5 {[%emt 0:04:50]} 6. O-O {[%emt 0:01:44]} Nc6 {[%emt 0:09:43]} 7. d5 {[%emt 0:04:53]} Nb4 {[%emt 0:02:43]} 8. a3 {[%emt 0:14:59]} Nxd3 {[%emt 0:00:31]} 9. Qxd3 {[%emt 0:00:06]} a6 {[%emt 0:08:14]} 10. Bg5 {[%emt 0:17:04]} d6 {[%emt 0:11:39]} 11. dxe6 {[%emt 0:03:51]} fxe6 {[%emt 0:00:06]} 12. Nf4 {[%emt 0:00:31]} Qd7 {[%emt 0:09:22]} 13. Bxf6 {[%emt 0:06:53]} gxf6 {[%emt 0:00:14]} 14. Qh3 {[%emt 0:00:12]} Bc8 {[%emt 0:06:01]} 15. Rad1 {[%emt 0:09:28]} Qf7 {[%emt 0:02:45]} 16. Qf3 {[%emt 0:03:16]} Rb8 {[%emt 0:01:45]} 17. Rd3 {[%emt 0:06:23]} Be7 {[%emt 0:02:05]} 18. Nce2 {[%emt 0:03:28]} O-O {[%emt 0:01:12]} 19. Ng3 {[%emt 0:00:11]} Kh8 {[%emt 0:00:17]} 20. Qd1 {[%emt 0:02:08]} Rb7 {[%emt 0:03:21]} 21. Nfe2 {[%emt 0:02:48]} Rg8 {[%emt 0:00:39]} 22. f4 {[%emt 0:01:30]} f5 {[%emt 0:05:50]} 23. exf5 {[%emt 0:00:27]} exf5 24. Nc3 {[%emt 0:00:27]} Rg6 {[%emt 0:00:49]} 25. Nd5 {[%emt 0:00:37]} Bf8 {[%emt 0:00:04]} 26. c4 {[%emt 0:01:19]} b5 {[%emt 0:00:08]} 27. b3 {[%emt 0:00:22]} Be6 {[%emt 0:04:56]} 28. Nh5 {[%emt 0:02:22]} Bxd5 {[%emt 0:03:10]} 29. Rxd5 {[%emt 0:00:50]} bxc4 {[%emt 0:01:44]} 30. bxc4 {[%emt 0:00:08]} Rb2 {[%emt 0:00:14]} 31. Ng3 {[%emt 0:00:26]} Bg7 {[%emt 0:00:28]} 32. Kh1 {[%emt 0:03:44]} Bd4 {[%emt 0:01:24]} 33. Rxf5 {[%emt 0:01:09]} Qxc4 {[%emt 0:00:45]} 34. Rf8+ {[%emt 0:02:47]} Kg7 {[%emt 0:01:50]} 35. Rd8 {[%emt 0:00:30]} Qd5 {[%emt 0:00:51]} 36. Rd7+ {[%emt 0:01:16]} Kg8 {[%emt 0:00:17]} 37. Qf3 {[%emt 0:01:29]} Qxf3 {[%emt 0:00:16]} 38. Rxf3 {[%emt 0:01:17]} Rb1+ {[%emt 0:00:13]} 39. Nf1 {[%emt 0:00:15]} c4 {[%emt 0:01:23]} 40. f5 {[%emt 0:00:10]} Rh6 {[%emt 0:01:10]} 41. Rc7 {[%emt 0:02:15]} c3 {[%emt 0:02:02]} 42. g4 {[%emt 0:00:07]} Bc5 {[%emt 0:00:50]} 43. f6 {[%emt 0:01:38]} Rxf6 {[%emt 0:01:34]} 44. Rxf6 {[%emt 0:00:11]} c2 {[%emt 0:00:04]} 45. Rff7 {[%emt 0:01:09]} Bd4 {[%emt 0:06:46]} 46. Kg2 {[%emt 0:00:52]} c1=Q {[%emt 0:00:38]} 47. Rxc1 {[%emt 0:00:06]} Rb2+ {[%emt 0:00:17]} 48. Kh3 {[%emt 0:02:43]} Kxf7 {[%emt 0:00:11]} 49. Ng3 {[%emt 0:00:06]} Ra2 {[%emt 0:02:13]} 50. Rc6 {[%emt 0:00:31]} Rxa3 {[%emt 0:00:29]} 51. Rxd6 {[%emt 0:00:05]} Be5 {[%emt 0:00:47]} 52. Rh6 {[%emt 0:00:25]} Kg7 {[%emt 0:01:16]} 53. Rc6 {[%emt 0:00:39]} Ra2 {[%emt 0:01:06]} 54. g5 {[%emt 0:00:27]} a5 {[%emt 0:00:09]} 55. Ra6 {[%emt 0:00:25]} a4 {[%emt 0:00:11]} 56. Kg4 {[%emt 0:00:29]} a3 {[%emt 0:00:26]} 57. Nh5+ {[%emt 0:01:01]} Kf7 {[%emt 0:00:08]} 58. Kf5 {[%emt 0:00:08]} Bd4 {[%emt 0:00:12]} 59. Ke4 {[%emt 0:01:55]} Bc5 {[%emt 0:00:01]} 60. Nf4 {[%emt 0:01:31]} Rxh2 {[%emt 0:00:24]} 61. Nd3 {[%emt 0:00:10]} Re2+ {[%emt 0:01:32]} 62. Kf5 {[%emt 0:00:10]} Bf8 {[%emt 0:01:54]} 63. Ne5+ {[%emt 0:00:34]} Kg8 {[%emt 0:00:14]} 64. Ra8 {[%emt 0:00:48]} a2 {[%emt 0:00:27]} 65. Nd7 {[%emt 0:00:29]} Rf2+ {[%emt 0:00:25]} 66. Kg4 {[%emt 0:00:19]} Kg7 {[%emt 0:00:50]} 67. Nxf8 {[%emt 0:00:08]} Rxf8 1/2-1/2